Cogmind - Beta 10.2 @@@ ROGUE MODE // 2021.05.13 @ 12:16:14 Player: Cookedpoo Result: Self-destructed Performance ------------- Evolutions (4) 2000 Regions Visited (16) 3200 Robots Destroyed (39) 195 Value Destroyed (1054) 1054 Prototype IDs (46) 920 Alien Tech Used (0) 0 Bonus (784) 784 TOTAL SCORE: 8153 Bonus ------- High Alert Combat Kills 44 Follower Combat Kills 150 Aligned with FarCom 300 Met Data Miner 300 Friendly Fire -10 Cogmind --------- Core Integrity 595/850 Matter 300/300 Energy 300/300 System Corruption 0% Temperature Cool (0) Movement Flying (32) Location -6/Extension Parts ------- > --- POWER (1) -------- Angular Momentum Engine > --- PROPULSION (2) --- Cooled VTOL Module Cooled VTOL Module > --- UTILITY (10) ----- Advanced Weight Redist. System Enhanced Optical Array Experimental Signal Interpreter Advanced Terrain Scanner Modified TNC Hacking Suite Hacking Suite Hacking Suite Hacking Suite > --- WEAPON (2) ------- (None) > --- INVENTORY (4) ---- Improved Deuterium Engine Light Particle Reactor Experimental Signal Interpreter Improved Trap Extractor Peak State ------------ > --- POWER ------------ Light Particle Reactor > --- PROPULSION ------- Cooled VTOL Module Cooled VTOL Module > --- UTILITY ---------- Weight Redist. System Advanced Weight Redist. System Enhanced Optical Array Experimental Signal Interpreter Advanced Terrain Scanner Modified TNC Hacking Suite Hacking Suite Hacking Suite Hacking Suite > --- WEAPON ----------- Greatsword > --- INVENTORY -------- Improved Deuterium Engine Experimental Signal Interpreter Improved Trap Extractor [Rating: 63] Favorites ----------- Power Light Ion Engine Engine Light Ion Engine Power Core Light Nuclear Core Reactor Light Particle Reactor Propulsion Cooled VTOL Module Flight Unit Cooled VTOL Module Utility Hacking Suite Device Weight Redist. System Storage Small Storage Unit Processor Modified TNC Hackware Hacking Suite Protection Core Shielding Weapon Minigun Ballistic Gun Minigun Launcher Rocket Launcher Impact Weapon Power Maul Slashing Weapon Greatsword Piercing Weapon Spear Build | -11 -10 -10 -9 -9 -9 -8 -8 -7 -7 -7 -7 -7 -7 -6 -6 -6 ------- Run | Scr Mat Min Mat Min Exi Min Mat Fac Was Fac Low Low Dat Pro Fac Ext Slots Evolved 8 | . . . 2 . . . 2 2 . . . . . . 2 . Power . | . . . . . . . . . . . . . . . . . Propulsion . | . . . . . . . . . . . . . . . . . Utility 8 | . . . 2 . . . 2 2 . . . . . . 2 . Weapon . | . . . . . . . . . . . . . . . . . Parts Attached 67 | 2 . 2 16 . . 5 9 6 . 4 1 1 . 1 20 . Power 9 | . . . 1 . . 1 . . . 1 . . . . 6 . Engine 5 | . . . 1 . . 1 . . . . . . . . 3 . Core 1 | . . . . . . . . . . 1 . . . . . . Reactor 3 | . . . . . . . . . . . . . . . 3 . Propulsion 7 | . . . . . . 1 . 1 . 2 . . . . 3 . Treads . | . . . . . . . . . . . . . . . . . Leg . | . . . . . . . . . . . . . . . . . Wheel . | . . . . . . . . . . . . . . . . . Hover . | . . . . . . . . . . . . . . . . . Flight 7 | . . . . . . 1 . 1 . 2 . . . . 3 . Utility 24 | . . 2 4 . . . 4 5 . 1 . . . 1 7 . Device 8 | . . . 2 . . . . 2 . . . . . 1 3 . Storage 1 | . . . . . . . 1 . . . . . . . . . Processor 7 | . . . 2 . . . 2 . . . . . . . 3 . Hackware 7 | . . 1 . . . . 1 3 . 1 . . . . 1 . Protection 1 | . . 1 . . . . . . . . . . . . . . Artifact . | . . . . . . . . . . . . . . . . . Weapon 27 | 2 . . 11 . . 3 5 . . . 1 1 . . 4 . Energy Gun . | . . . . . . . . . . . . . . . . . Energy Cannon . | . . . . . . . . . . . . . . . . . Ballistic Gun 17 | 2 . . 11 . . 2 2 . . . . . . . . . Ballistic Cannon . | . . . . . . . . . . . . . . . . . Launcher 1 | . . . . . . 1 . . . . . . . . . . Special Weapon . | . . . . . . . . . . . . . . . . . Impact Weapon 2 | . . . . . . . 2 . . . . . . . . . Slashing Weapon 4 | . . . . . . . 1 . . . 1 . . . 2 . Piercing Weapon 3 | . . . . . . . . . . . . 1 . . 2 . Special Melee Weapon . | . . . . . . . . . . . . . . . . . Unidentified Prototypes 2 | . . . . . . . . . . 1 . . . . 1 . Parts Lost 8 | . . . 1 . . 1 . . . . . 2 . . 3 1 Power 1 | . . . . . . . . . . . . . . . 1 . Propulsion 1 | . . . . . . 1 . . . . . . . . . . Utility 3 | . . . . . . . . . . . . 1 . . 2 . Weapon 3 | . . . 1 . . . . . . . . 1 . . . 1 Highest Loss Streak 2 | . . . 1 . . 1 . . . . . 2 . . 2 1 Average Slot Usage (%) 72 | . 28 55 55 77 77 78 71 77 76 79 92 90 84 85 84 86 Engine 3 | . . . 2 11 11 11 3 . . . . . . . 2 6 Flight 5 | . . . . . . 2 . 6 7 9 15 15 15 15 12 13 Device 9 | . . . 2 11 11 11 9 11 15 15 15 15 15 16 14 13 Storage 1 | . . . . . . . 8 3 . . . . . . . . Processor 13 | . . . 14 22 22 22 21 11 7 7 7 7 7 7 15 20 Hackware 21 | . . 13 11 11 11 11 14 32 38 38 38 36 30 30 29 26 Protection 1 | . . 12 5 . . . . . . . . . . . . . Ballistic Gun 10 | . 28 28 18 22 22 20 4 . . . . . . . . . Impact Weapon 1 | . . . . . . . 5 7 7 7 3 . . . . . Slashing Weapon 1 | . . . . . . . 4 3 . . 3 5 . . 1 6 Naked Turns . | . . . . . . . . . . . . . . . . . Heaviest Build 20 | 2 2 3 9 9 9 9 13 9 4 9 11 11 8 9 20 19 Greatest Support 29 | 3 3 3 9 9 9 10 9 12 12 12 11 16 11 20 29 19 Greatest Overweight (x) 2 | . . . 2 . . . 2 . . 1 . . . . 1 . Average Overweight (x) . | . . . . . . . . . . . . . . . . . Largest Inventory Capacity 6 | 4 4 4 4 4 4 4 6 6 4 4 4 4 4 4 4 4 Average Capacity 4 | 4 4 4 4 4 4 4 5 4 4 4 4 4 4 4 4 4 Most Carried 6 | . 4 4 4 4 4 4 6 6 4 4 4 4 4 4 4 4 Average Carried 3 | . 2 3 3 3 3 3 5 3 4 3 4 4 4 4 3 4 Final Capacity 6 | 4 4 4 4 4 4 4 6 4 4 4 4 4 4 4 4 4 Final Carried 6 | . 4 4 2 4 4 4 6 4 4 4 4 4 4 4 4 4 Class Distribution -------------------- 23% | Mutant 22% | Hacker-Mutant 21% | Hacker-Scout 19% | Scavenger-Mutant 4% | Hacker-Assassin 3% | Hacker-Ninja Dominant Class ---------------- Mutant | -10/Materials Mutant | -10/Mines Mutant | -9/Materials Scavenger-Mutant | -9/Mines Scavenger-Mutant | -9/Exiles Scavenger-Mutant | -8/Mines Hacker-Scout | -8/Materials Hacker-Mutant | -7/Factory Hacker-Mutant | -7/Waste Hacker-Mutant | -7/Factory Hacker-Mutant | -7/Lower Caves Hacker-Mutant | -7/Lower Caves Hacker-Mutant | -7/Data Miner Hacker-Mutant | -6/Proximity Caves Hacker-Scout | -6/Factory Hacker-Scout | -6/Extension Resources | -11 -10 -10 -9 -9 -9 -8 -8 -7 -7 -7 -7 -7 -7 -6 -6 -6 ----------- Run | Scr Mat Min Mat Min Exi Min Mat Fac Was Fac Low Low Dat Pro Fac Ext Matter Collected 1384 | 220 10 30 482 . . 123 142 70 . . 38 59 . . 100 110 Remotely . | . . . . . . . . . . . . . . . . . Salvage Created 1568 | . 18 40 614 . . 142 258 50 . . . 41 . . 224 181 Parts 107 | . 1 3 42 . . 15 17 3 . . . 2 . . 16 8 Haulers Intercepted 5 | . . . 3 . . . 2 . . . . . . . . . Recyclers Shooed 1 | . . . . . . 1 . . . . . . . . . . Parts Field Recycled . | . . . . . . . . . . . . . . . . . Retrieved Matter . | . . . . . . . . . . . . . . . . . Parts Self-Destructed 3 | . . . . . . . . . . . . 3 . . . . Prevented 1 | . . . . . . . . . . . . 1 . . . . Kills | -11 -10 -10 -9 -9 -9 -8 -8 -7 -7 -7 -7 -7 -7 -6 -6 -6 ------- Run | Scr Mat Min Mat Min Exi Min Mat Fac Was Fac Low Low Dat Pro Fac Ext Combat Hostiles Destroyed 25 | . . 1 10 . . 4 3 . . . . 1 . . 5 1 Melee 8 | . . . . . . . 1 . . . . 1 . . 5 1 Guns 14 | . . 1 10 . . 1 2 . . . . . . . . . AOE 3 | . . . . . . 3 . . . . . . . . . . Classes Destroyed 11 | . 1 1 3 . . 4 . 1 . . . . . . 1 . Worker 3 | . . . 1 . . 1 . . . . . . . . 1 . Tunneler 2 | . . . . . . 2 . . . . . . . . . . Hauler 5 | . . . 3 . . . 2 . . . . . . . . . Recycler 2 | . . . . . . 1 . . . . . . . . . 1 Mechanic 1 | . . . . . . . . 1 . . . . . . . . Operator 1 | . 1 . . . . . . . . . . . . . . . Swarmer 6 | . . . . . . 3 . . . . . . . . 3 . Grunt 8 | . . 1 6 . . . 1 . . . . . . . . . Sentry 8 | . . . 4 . . . 2 . . . . . . . 1 1 Hunter 2 | . . . . . . 1 . . . . . 1 . . . . Programmer 1 | . . . . . . . . . . . . . . . 1 . Best Kill Streak 5 | . 1 1 4 . . 5 2 1 . . . 1 . . 3 1 Combat Bots Only 4 | . . 1 4 . . 3 2 . . . . 1 . . 3 1 Max Kills in Single Turn 3 | . 1 1 2 . . 3 1 1 . . . 1 . . 1 1 Gunslinging 1 | . . . 1 . . . . . . . . . . . . . Exploded 2 | . . . . . . 2 . . . . . . . . . . Melee 1 | . . . . . . . 1 . . . . 1 . . 1 1 Uniques/NPCs Destroyed . | . . . . . . . . . . . . . . . . . Combat | -11 -10 -10 -9 -9 -9 -8 -8 -7 -7 -7 -7 -7 -7 -6 -6 -6 -------- Run | Scr Mat Min Mat Min Exi Min Mat Fac Was Fac Low Low Dat Pro Fac Ext Damage Taken 1507 | . 27 . 405 . . 100 96 . . . . 117 . . 400 362 Core 514 | . 16 . 147 . . 28 67 . . . . 1 . . 163 92 Absorbed by Shields . | . . . . . . . . . . . . . . . . . Core Remaining (%) 87 | 100 . 93 . . . 56 87 . . . . . . 99 . . Volleys Fired 93 | . 6 4 67 . . 11 5 . . . . . . . . . Largest 2 | . 2 2 2 . . 2 2 . . . . . . . . . Hottest 50 | . 40 40 50 . . 50 50 . . . . . . . . . Shots Fired 166 | . 12 8 118 . . 18 10 . . . . . . . . . Gun 162 | . 12 8 118 . . 14 10 . . . . . . . . . Cannon . | . . . . . . . . . . . . . . . . . Launcher 4 | . . . . . . 4 . . . . . . . . . . Special . | . . . . . . . . . . . . . . . . . Kinetic 162 | . 12 8 118 . . 14 10 . . . . . . . . . Thermal . | . . . . . . . . . . . . . . . . . Explosive 4 | . . . . . . 4 . . . . . . . . . . Electromagnetic . | . . . . . . . . . . . . . . . . . Robot Hit Streak 9 | . 5 4 9 . . 7 4 . . . . . . . . . Robot Miss Streak 2 | . 1 1 2 . . 2 2 . . . . . . . . . Penetration Max . | . . . . . . . . . . . . . . . . . Secondary Targets 1 | . . . 1 . . . . . . . . . . . . . Max Gunslinging Chain 1 | . . . 1 . . . . . . . . . . . . . Shots Hit Robots 144 | . 10 6 83 . . 10 16 1 . . . 1 . . 12 5 Core Hits 57 | . 2 2 26 . . 11 6 1 . . . 1 . . 6 2 Critical Hits 1 | . . . 1 . . . . . . . . . . . . . Critical Kills . | . . . . . . . . . . . . . . . . . Critical Parts Destroyed 1 | . . . 1 . . . . . . . . . . . . . Melee Attacks 73 | . . . . . . . 22 4 . 6 . 2 . 1 22 16 Impact 10 | . . . . . . . 4 . . 6 . . . . . . Slashing 42 | . . . . . . . 18 4 . . . 2 . . 2 16 Piercing 21 | . . . . . . . . . . . . . . 1 20 . Sneak Attacks 9 | . . . . . . . 4 1 . . . . . . 3 1 Combat Hostiles 3 | . . . . . . . 1 . . . . . . . 2 . Follow-up Attacks 1 | . . . . . . . 1 . . . . . . . . . Damage Inflicted 3693 | . 70 55 1167 . . 512 724 89 . . . 75 . . 593 408 Guns 1521 | . 70 55 1167 . . 123 106 . . . . . . . . . Cannons . | . . . . . . . . . . . . . . . . . Explosions 389 | . . . . . . 389 . . . . . . . . . . Melee 1783 | . . . . . . . 618 89 . . . 75 . . 593 408 Ramming . | . . . . . . . . . . . . . . . . . Kinetic 1521 | . 70 55 1167 . . 123 106 . . . . . . . . . Thermal . | . . . . . . . . . . . . . . . . . Explosive 389 | . . . . . . 389 . . . . . . . . . . Electromagnetic . | . . . . . . . . . . . . . . . . . Impact . | . . . . . . . . . . . . . . . . . Slashing 1317 | . . . . . . . 618 89 . . . 75 . . 127 408 Piercing 466 | . . . . . . . . . . . . . . . 466 . Highest Corruption 9 | . . . . . . . . . 8 8 8 9 9 9 . . Average Corruption 8 | . . . . . . . . . 8 8 8 8 9 9 . . Corruption Purged . | . . . . . . . . . . . . . . . . . Effects 25 | . . . . . . . . . . 11 2 7 1 4 . . Message Errors 4 | . . . . . . . . . . 2 . 1 . 1 . . Matter Fused 7 | . . . . . . . . . . 3 2 2 . . . . Heat Flow Errors 6 | . . . . . . . . . . 2 . 2 . 2 . . Energy Discharges 1 | . . . . . . . . . . 1 . . . . . . Data Loss (minor) 5 | . . . . . . . . . . 3 . 1 . 1 . . Data Loss (major) 1 | . . . . . . . . . . . . . 1 . . . Targeting Errors 1 | . . . . . . . . . . . . 1 . . . . Overload Shots . | . . . . . . . . . . . . . . . . . Overflow Damage 160 | . . . . . . 44 8 . . . . . . . 103 5 Projectiles . | . . . . . . . . . . . . . . . . . Explosions 44 | . . . . . . 44 . . . . . . . . . . Melee 116 | . . . . . . . 8 . . . . . . . 103 5 Knockbacks . | . . . . . . . . . . . . . . . . . Impact . | . . . . . . . . . . . . . . . . . Kinetic . | . . . . . . . . . . . . . . . . . Secondary . | . . . . . . . . . . . . . . . . . Self-Inflicted Damage . | . . . . . . . . . . . . . . . . . Shots . | . . . . . . . . . . . . . . . . . Rammed . | . . . . . . . . . . . . . . . . . Targets Rammed . | . . . . . . . . . . . . . . . . . Kicked . | . . . . . . . . . . . . . . . . . Crushed . | . . . . . . . . . . . . . . . . . Highest Temperature 262 | . . . 9 . . 9 8 . . 234 . 195 . 262 . . Average Temperature 55 | . . . 3 . . 4 6 . . 107 . 84 . 119 . . Received Heat Transfer 324 | . 15 . 180 . . . 45 . . . . 12 . . 12 60 Siege Activations . | . . . . . . . . . . . . . . . . . Robots Corrupted . | . . . . . . . . . . . . . . . . . Combat Hostiles . | . . . . . . . . . . . . . . . . . Parts Fried . | . . . . . . . . . . . . . . . . . Impact Corruptions . | . . . . . . . . . . . . . . . . . Robots Melted . | . . . . . . . . . . . . . . . . . Combat Hostiles . | . . . . . . . . . . . . . . . . . Parts Melted . | . . . . . . . . . . . . . . . . . Heat Transferred . | . . . . . . . . . . . . . . . . . Parts Sabotaged . | . . . . . . . . . . . . . . . . . Parts Stolen . | . . . . . . . . . . . . . . . . . Parts Stripped . | . . . . . . . . . . . . . . . . . Power Chain Reactions . | . . . . . . . . . . . . . . . . . Missiles Intercepted . | . . . . . . . . . . . . . . . . . Alert | -11 -10 -10 -9 -9 -9 -8 -8 -7 -7 -7 -7 -7 -7 -6 -6 -6 ------- Run | Scr Mat Min Mat Min Exi Min Mat Fac Was Fac Low Low Dat Pro Fac Ext Peak Influence 566 | . 187 152 436 120 . 131 226 44 60 88 . . . . 566 338 Initial 209 | . . 72 59 120 . . 50 32 15 42 . . . . . 209 Average 147 | . 65 126 221 120 . 79 122 41 35 62 . . . . 286 243 Maximum Alert Level 2 | . . . 2 . . . 1 . . . . . . . 2 1 Low Security (%) 72 | 100 100 100 39 100 . 100 80 100 100 100 . . . . 44 . Level 1 20 | . . . 55 . . . 19 . . . . . . . 3 100 Level 2 7 | . . . 4 . . . . . . . . . . . 51 . Level 3 . | . . . . . . . . . . . . . . . . . Level 4 . | . . . . . . . . . . . . . . . . . Level 5 . | . . . . . . . . . . . . . . . . . High Security . | . . . . . . . . . . . . . . . . . Max Security . | . . . . . . . . . . . . . . . . . Squads Dispatched 7 | . 2 1 . . . . 1 1 . 1 . . . . 1 . Investigation 3 | . . 1 . . . . 1 . . . . . . . 1 . Extermination 1 | . . . . . . . . . . 1 . . . . . . Reinforcement 3 | . 2 . . . . . . 1 . . . . . . . . Assault . | . . . . . . . . . . . . . . . . . Garrison . | . . . . . . . . . . . . . . . . . Intercept . | . . . . . . . . . . . . . . . . . Construction Impeded . | . . . . . . . . . . . . . . . . . Haulers Reinforced . | . . . . . . . . . . . . . . . . . Stealth | -11 -10 -10 -9 -9 -9 -8 -8 -7 -7 -7 -7 -7 -7 -6 -6 -6 --------- Run | Scr Mat Min Mat Min Exi Min Mat Fac Was Fac Low Low Dat Pro Fac Ext Distress Signals 11 | . 2 . 2 . . . 6 . . . . . . 1 . . Communications Jammed . | . . . . . . . . . . . . . . . . . Distress Signals . | . . . . . . . . . . . . . . . . . Times Spotted 97 | . 13 2 29 . . 4 14 1 6 4 . 2 . 5 10 7 Peak Tracking Total 7 | . 7 2 6 . . 3 5 . 6 4 . 1 . 5 5 5 Tactical Retreats 14 | . 2 . 8 . . . 3 . . . . . . . . 1 Traps | -11 -10 -10 -9 -9 -9 -8 -8 -7 -7 -7 -7 -7 -7 -6 -6 -6 ------- Run | Scr Mat Min Mat Min Exi Min Mat Fac Was Fac Low Low Dat Pro Fac Ext Traps Triggered 1 | . . . . . . . . 1 . . . . . . . . Indirectly . | . . . . . . . . . . . . . . . . . Trap Hack Attempts . | . . . . . . . . . . . . . . . . . Triggered . | . . . . . . . . . . . . . . . . . Disarmed 1 | . . . . . . . . . . . . . . . 1 . Reprogrammed 6 | . . . . . . . 6 . . . . . . . . . Reused 1 | . . . . . . . 1 . . . . . . . . . Traps Extracted . | . . . . . . . . . . . . . . . . . Installed 1 | . . . . . . . 1 . . . . . . . . . Triggered 2 | . . . . . . . 1 . . . . 1 . . . . Machines | -11 -10 -10 -9 -9 -9 -8 -8 -7 -7 -7 -7 -7 -7 -6 -6 -6 ---------- Run | Scr Mat Min Mat Min Exi Min Mat Fac Was Fac Low Low Dat Pro Fac Ext Machines Disabled 2 | . . . . . . . . . . . . . . 1 . 1 Max in Single Turn 1 | . . . . . . . . . . . . . . 1 . 1 Garrison Access 1 | . . . . . . . . . . 1 . . . . . . Machines Sabotaged . | . . . . . . . . . . . . . . . . . Garrisons Compromised . | . . . . . . . . . . . . . . . . . Overloaded Fab Kills . | . . . . . . . . . . . . . . . . . Fab Network Shutdowns 1 | . . . . . . . . . . . . . . . 1 . Hacking | -11 -10 -10 -9 -9 -9 -8 -8 -7 -7 -7 -7 -7 -7 -6 -6 -6 --------- Run | Scr Mat Min Mat Min Exi Min Mat Fac Was Fac Low Low Dat Pro Fac Ext Machines Accessed 44 | . 6 1 6 . 2 . 3 4 . 6 . . 3 1 10 2 Terminals 22 | . 5 . 4 . . . 2 . . 3 . . . 1 5 2 Fabricators 5 | . . . . . . . . 1 . 2 . . . . 2 . Repair Stations 6 | . . . 1 . . . 1 2 . . . . . . 2 . Recycling Units 3 | . 1 . 1 . . . . . . . . . . . 1 . Scanalyzers 1 | . . . . . . . . 1 . . . . . . . . Garrison Access 1 | . . . . . . . . . . 1 . . . . . . Total Hacks 126 | . 17 1 19 . 2 . 8 10 . 15 . . 25 1 24 4 Successful 100 | . 10 1 13 . 2 . 7 10 . 11 . . 25 1 18 2 Failed 24 | . 7 . 5 . . . 1 . . 3 . . . . 6 2 Catastrophic 2 | . 2 . . . . . . . . . . . . . . . Database Lockouts 2 | . . . 1 . . . . . . 1 . . . . . . Manual 42 | . 12 . 10 . 1 . 3 . . 6 . . . . 8 2 Terminals 58 | . 15 . 12 . . . 4 . . 11 . . . 1 11 4 Fabricators 10 | . . . . . . . . 2 . 3 . . . . 5 . Repair Stations 18 | . . . 4 . . . 4 4 . . . . . . 6 . Recycling Units 7 | . 2 . 3 . . . . . . . . . . . 2 . Scanalyzers 4 | . . . . . . . . 4 . . . . . . . . Garrison Access 1 | . . . . . . . . . . 1 . . . . . . Terminal Hacks 57 | . 8 1 5 . 2 . 3 . . 6 . . 25 1 4 2 Record 6 | . . . . . 1 . . . . . . . 5 . . . Part Schematic 10 | . . . . . . . . . . . . . 10 . . . Robot Schematic 8 | . . . . . . . . . . 1 . . 7 . . . Robot Analysis 8 | . 2 . 1 . . . 1 . . 3 . . . . . 1 Prototype ID Bank 9 | . 3 . 1 . . . 1 . . 1 . . 3 . . . Open Door 3 | . . 1 . . . . . . . . . . . 1 1 . Branch Access Points 2 | . . . 1 . . . . . . 1 . . . . . . Emergency Access Points 1 | . . . 1 . . . . . . . . . . . . . Locate Traps 3 | . 2 . . . . . . . . . . . . . 1 . Disarm Traps 1 | . . . . . . . . . . . . . . . 1 . Reprogram Traps 1 | . . . . . . . 1 . . . . . . . . . Hauler Manifests 1 | . 1 . . . . . . . . . . . . . . . Zone Layout 3 | . . . 1 . . . . . . . . . . . 1 1 EX-Prototype ID Bank 1 | . . . . . 1 . . . . . . . . . . . Fabricator Hacks 9 | . . . . . . . . 2 . 3 . . . . 4 . Network Status 1 | . . . . . . . . . . . . . . . 1 . Load Schematic 3 | . . . . . . . . 1 . 1 . . . . 1 . Build 5 | . . . . . . . . 1 . 2 . . . . 2 . Repair Station Hacks 18 | . . . 4 . . . 4 4 . . . . . . 6 . Scan Component 9 | . . . 2 . . . 2 2 . . . . . . 3 . Repair 9 | . . . 2 . . . 2 2 . . . . . . 3 . Recycling Unit Hacks 4 | . 1 . 1 . . . . . . . . . . . 2 . Retrieve Components 4 | . 1 . 1 . . . . . . . . . . . 2 . Scanalyzer 4 | . . . . . . . . 4 . . . . . . . . Insert Component 2 | . . . . . . . . 2 . . . . . . . . Analyze 2 | . . . . . . . . 2 . . . . . . . . Garrison Access Hacks 1 | . . . . . . . . . . 1 . . . . . . Seal Access 1 | . . . . . . . . . . 1 . . . . . . Unauthorized Hacks 7 | . 1 . 3 . . . . . . 1 . . . . 2 . Terminals 7 | . 1 . 3 . . . . . . 1 . . . . 2 . Track 1 | . . . 1 . . . . . . . . . . . . . Assimilate 4 | . 1 . 1 . . . . . . 1 . . . . 1 . Operators 2 | . . . 1 . . . . . . . . . . . 1 . Fabricators . | . . . . . . . . . . . . . . . . . Repair Stations . | . . . . . . . . . . . . . . . . . Recycling Units . | . . . . . . . . . . . . . . . . . Scanalyzers . | . . . . . . . . . . . . . . . . . Garrison Access . | . . . . . . . . . . . . . . . . . Data Cores Recovered . | . . . . . . . . . . . . . . . . . Used . | . . . . . . . . . . . . . . . . . Hacking Detections 29 | . 4 . 6 . . . 3 2 . 4 . . . . 8 2 Full Trace Events 1 | . . . . . . . . . . . . . . . 1 . Feedback Events 1 | . . . . . . . . . . . . . . . 1 . Hackware Fried 1 | . . . . . . . . . . . . . . . 1 . Feedback Blocked . | . . . . . . . . . . . . . . . . . Robot Schematics Acquired 8 | . . . . . . . . . . 1 . . 7 . . . Robots Built 3 | . . . . . . . . . . 3 . . . . . . Matter 186 | . . . . . . . . . . 186 . . . . . . Time 49 | . . . . . . . . . . 49 . . . . . . Total Robot Build Rating 6 | . . . . . . . . . . 6 . . . . . . Part Schematics Acquired 12 | . . . . . . . . 2 . . . . 10 . . . Parts Built 4 | . . . . . . . . 1 . 1 . . . . 2 . Matter 636 | . . . . . . . . 168 . 212 . . . . 256 . Time 232 | . . . . . . . . 84 . 106 . . . . 42 . Total Part Build Rating 26 | . . . . . . . . 4 . 6 . . . . 16 . Parts Repaired 9 | . . . 2 . . . 2 2 . . . . . . 3 . Time 302 | . . . 70 . . . 70 46 . . . . . . 116 . Parts Recycled . | . . . . . . . . . . . . . . . . . Recycled Matter . | . . . . . . . . . . . . . . . . . Retrieved Matter . | . . . . . . . . . . . . . . . . . Retrieved Components . | . . . . . . . . . . . . . . . . . Parts Scanalyzed 2 | . . . . . . . . 2 . . . . . . . . Part Schematics Acquired 2 | . . . . . . . . 2 . . . . . . . . Parts Damaged 1 | . . . . . . . . 1 . . . . . . . . Bothacking | -11 -10 -10 -9 -9 -9 -8 -8 -7 -7 -7 -7 -7 -7 -6 -6 -6 ------------ Run | Scr Mat Min Mat Min Exi Min Mat Fac Was Fac Low Low Dat Pro Fac Ext Used RIF Installer . | . . . . . . . . . . . . . . . . . Robots Hacked . | . . . . . . . . . . . . . . . . . Non-combat . | . . . . . . . . . . . . . . . . . Combat . | . . . . . . . . . . . . . . . . . Robot Hacks Applied . | . . . . . . . . . . . . . . . . . Relay Couplers Released . | . . . . . . . . . . . . . . . . . Robots Rewired . | . . . . . . . . . . . . . . . . . Allies Hacked . | . . . . . . . . . . . . . . . . . Hacks Repelled . | . . . . . . . . . . . . . . . . . Allies | -11 -10 -10 -9 -9 -9 -8 -8 -7 -7 -7 -7 -7 -7 -6 -6 -6 -------- Run | Scr Mat Min Mat Min Exi Min Mat Fac Was Fac Low Low Dat Pro Fac Ext Total Allies 15 | . 1 2 1 . . . . . . 4 . . . 1 1 5 Largest Group 5 | . 1 2 2 1 1 1 1 . . 4 . . . 1 1 5 Highest-Rated Group 167 | . 10 45 45 10 10 10 10 . . 64 . . . 94 10 167 Highest-Rated Ally 94 | . 10 31 31 10 10 10 10 . . 18 . . . 94 10 37 Total Orders . | . . . . . . . . . . . . . . . . . Ally Attacks 29 | . . 7 3 . . . . . . . . . . . . 19 Total Damage 458 | . . 103 40 . . . . . . . . . . . . 315 Kills 5 | . . 2 . . . . . . . . . . . . . 3 Allies Corrupted . | . . . . . . . . . . . . . . . . . Allies Melted . | . . . . . . . . . . . . . . . . . Intel | -11 -10 -10 -9 -9 -9 -8 -8 -7 -7 -7 -7 -7 -7 -6 -6 -6 ------- Run | Scr Mat Min Mat Min Exi Min Mat Fac Was Fac Low Low Dat Pro Fac Ext Robot Analysis Total 8 | . 2 . 1 . . . 1 . . 3 . . . . . 1 Derelict Logs Recovered 6 | . . 2 . 1 . . . . . . 1 1 . 1 . . Drone Launches . | . . . . . . . . . . . . . . . . . Drone Recoveries . | . . . . . . . . . . . . . . . . . Exploration | -11 -10 -10 -9 -9 -9 -8 -8 -7 -7 -7 -7 -7 -7 -6 -6 -6 ------------- Run | Scr Mat Min Mat Min Exi Min Mat Fac Was Fac Low Low Dat Pro Fac Ext Turns Passed 4225 | 17 158 394 588 256 147 260 470 397 46 342 93 167 27 89 451 323 Spaces Moved 6354 | 27 264 559 551 482 278 457 396 326 85 523 229 457 77 246 667 730 Core 3648 | 27 264 559 551 482 278 343 396 324 60 364 . . . . . . Treads . | . . . . . . . . . . . . . . . . . Legs . | . . . . . . . . . . . . . . . . . Wheels . | . . . . . . . . . . . . . . . . . Hover . | . . . . . . . . . . . . . . . . . Flight 2706 | . . . . . . 114 . 2 25 159 229 457 77 246 667 730 Fastest Speed 26 | 50 50 50 50 50 50 40 50 40 40 35 35 32 35 26 26 32 Average Speed 43 | 50 50 50 50 50 50 47 61 49 47 47 35 34 35 34 32 32 Slowest Speed 150 | 50 50 50 150 50 50 50 150 50 50 100 35 35 35 35 97 32 Overloaded Moves 8 | . . . . . . . . . . . . . . 3 5 . Propulsion Burnouts . | . . . . . . . . . . . . . . . . . Robots Hopped 4 | . . . . . . . . . . 1 . . . . 3 . Cave-ins Triggered . | . . . . . . . . . . . . . . . . . Exploration Rate (%) 50 | 3 62 89 50 86 71 80 36 10 73 17 50 57 68 39 19 43 Regions Visited 16 Branch Regions 9 Pre-discovered Areas 4 | . . 2 . 1 1 . . . . . . . . . . . Known Exits Taken 4 | . . . 1 . . . 1 . . 1 . . . . 1 . Unknown Exits Taken 10 | 1 1 1 . 1 1 1 . . . . 1 1 1 1 . . Scrap Searched 8 | . . 2 . . . 1 . . . . 2 2 . 1 . . Spaces Dug 14 | . . . . . . . 3 1 . 5 . 1 . . 4 . Terrain Destroyed 42 | . . . . . . 28 3 1 . 5 . 1 . . 4 . Melee 14 | . . . . . . . 3 1 . 5 . 1 . . 4 . Projectile . | . . . . . . . . . . . . . . . . . AOE 28 | . . . . . . 28 . . . . . . . . . . Terrain Rammed . | . . . . . . . . . . . . . . . . . Walls Destroyed . | . . . . . . . . . . . . . . . . . Machines Disabled . | . . . . . . . . . . . . . . . . . Actions | -11 -10 -10 -9 -9 -9 -8 -8 -7 -7 -7 -7 -7 -7 -6 -6 -6 --------- Run | Scr Mat Min Mat Min Exi Min Mat Fac Was Fac Low Low Dat Pro Fac Ext Total 7528 | 28 279 666 771 497 286 484 588 556 90 604 241 459 76 247 869 787 Wait 869 | . 6 100 122 12 5 8 142 208 6 68 11 . . . 140 41 Move 6331 | 26 263 558 550 481 277 456 395 326 84 520 228 456 76 245 660 730 Hop 4 | . . . . . . . . . . 1 . . . . 3 . Pick Up 36 | . 4 1 5 3 2 1 8 6 . 2 . . . . 4 . Fast Attach 37 | 2 . 2 6 . . 2 5 2 . 3 1 1 . 1 12 . Attach 21 | . . . 5 . . 1 3 4 . . . . . . 8 . Detach 19 | . . . 4 . . . 3 1 . . . . . . 11 . Swap 9 | . . . 5 . . 2 1 . . 1 . . . . . . Drop 38 | . . 1 7 1 2 3 7 5 . 3 1 . . . 8 . Fire 93 | . 6 4 67 . . 11 5 . . . . . . . . . Melee 69 | . . . . . . . 18 4 . 6 . 2 . 1 22 16 Ram . | . . . . . . . . . . . . . . . . . Kick . | . . . . . . . . . . . . . . . . . Crush . | . . . . . . . . . . . . . . . . . Escape Stasis . | . . . . . . . . . . . . . . . . . Rewire 1 | . . . . . . . . . . . . . . . 1 . Trap 1 | . . . . . . . 1 . . . . . . . . . Miscellaneous . | . . . . . . . . . . . . . . . . . Route ------- -11/Scrapyard -10/Materials (discovered 3 exits: *Mat / *Min x2) -10/Mines (discovered 2 exits: *Mat x2) -9/Materials (discovered 3 exits: *Mat / *Min x2) -9/Mines (discovered 2 exits: *Mat / *Exi) -9/Exiles -8/Mines (discovered 2 exits: *Mat x2) -8/Materials (discovered 3 exits: *Fac x2 / Sto) -7/Factory -7/Waste -7/Factory (discovered 3 exits: *Fac / *Low x2) -7/Lower Caves -7/Lower Caves -7/Data Miner -6/Proximity Caves -6/Factory (discovered 5 exits: *Fac x2 / Low / *Ext x2) -6/Extension History --------- Turn | Location | Event 4 | -11/Scrapyard | Discovered new exit (range 16) 18 | -11/Scrapyard | Entered Materials 119 | -10/Materials | Discovered new exit (range 10) 124 | -10/Materials | Discovered new exit (range 12) 167 | -10/Materials | Discovered new exit (range 7) 176 | -10/Materials | Entered Mines 176 | -10/Mines | Accompanied by 1 ally 177 | -10/Mines | Joined a pair of Derelicts in attacking an 0b10 outpost 314 | -10/Mines | Build established: Mutant 347 | -10/Mines | Learned location of Storage (-8) 352 | -10/Mines | Met a Derelict shopkeep closing up shop 378 | -10/Mines | Discovered new exit (range 7) 452 | -10/Mines | Learned location of Zion (-6) 464 | -10/Mines | Discovered new exit (range 14) 570 | -10/Mines | Entered Materials 570 | -9/Materials | Accompanied by 2 allies 570 | -9/Materials | Evolved 2 slots: Utility x2 575 | -9/Materials | Led the pair of lost Derelicts to an unsafe place 847 | -9/Materials | Central database locked down 911 | -9/Materials | Discovered new exit (range 16) 1070 | -9/Materials | Repaired Minigun 1103 | -9/Materials | Repaired Weight Redist. System 1137 | -9/Materials | Identified exit to Mines 1158 | -9/Materials | Entered Mines 1158 | -9/Mines | Accompanied by 1 ally 1176 | -9/Mines | Discovered new exit (range 12) 1192 | -9/Mines | Learned 4 Materials zone layouts 1199 | -9/Mines | Assembled infested the area 1281 | -9/Mines | Found a hidden stash of uninstalled traps 1289 | -9/Mines | A weapon hastily lodged in a ceiling crevice suddenly fell to the ground 1312 | -9/Mines | Received a Rocket Launcher from a helpful Derelict 1350 | -9/Mines | Deemed a non-threat by the Exiles lab entrance 1391 | -9/Mines | Build established: Scavenger-Mutant 1406 | -9/Mines | Discovered new exit (range 5) 1414 | -9/Mines | Entered Exiles 1414 | -9/Exiles | Accompanied by 1 ally 1427 | -9/Exiles | Met 8R-AWN 1436 | -9/Exiles | Met EX-HEX 1452 | -9/Exiles | Met EX-BIN 1458 | -9/Exiles | Aligned with FarCom system 1458 | -9/Exiles | Given EX-Vault access code 1470 | -9/Exiles | Opened EX-Vault 1473 | -9/Exiles | Found Modified TNC 1486 | -9/Exiles | Warned to stay clear of 0b10 Research branches 1501 | -9/Exiles | Met EX-DEC 1552 | -9/Exiles | Discovered new exit (range 10) 1561 | -9/Exiles | Left Exiles lab with Modified TNC 1561 | -9/Exiles | Entered Mines 1561 | -8/Mines | Accompanied by 1 ally 1657 | -8/Mines | Discovered new exit (range 9) 1733 | -8/Mines | Discovered new exit (range 9) 1821 | -8/Mines | Entered Materials 1821 | -8/Materials | Accompanied by 1 ally 1821 | -8/Materials | Evolved 2 slots: Utility x2 1822 | -8/Materials | Identified exit to Factory 1822 | -8/Materials | Identified exit to Storage 1877 | -8/Materials | Repaired Rocket Launcher 1916 | -8/Materials | Repaired Minigun 2285 | -8/Materials | Discovered exit to Factory (range 8) 2291 | -8/Materials | Entered Factory 2291 | -7/Factory | Evolved 2 slots: Utility x2 2347 | -7/Factory | Repaired Weight Redist. System 2582 | -7/Factory | Repaired Broken Enh. Optical Array 2681 | -7/Factory | Fabricated Enh. Optical Array (x1) 2688 | -7/Factory | Sucked down chute 2688 | -7/Factory | Entered Waste 2692 | -7/Waste | Spotted C-40 Crusher 2703 | -7/Waste | EMP discharged 2704 | -7/Waste | Spotted C-40 Crusher 2708 | -7/Waste | Spotted C-40 Crusher 2712 | -7/Waste | Spotted C-40 Crusher 2720 | -7/Waste | Spotted C-40 Crusher 2721 | -7/Waste | Spotted C-40 Crusher 2729 | -7/Waste | Discovered new exit (range 14) 2734 | -7/Waste | Entered Factory 2765 | -7/Factory | Build established: Hacker-Mutant 2811 | -7/Factory | Identified exit to Lower Caves 2819 | -7/Factory | Central database locked down 2991 | -7/Factory | Fabricated Disruptor Cannon? 3041 | -7/Factory | Fabricated L-31 Rogue (x3) 3041 | -7/Factory | Discovered new exit (range 15) 3076 | -7/Factory | Entered Lower Caves 3112 | -7/Lower Caves | Learned Factory non-interactive machine intel 3136 | -7/Lower Caves | Encountered a Warlord checkpoint 3168 | -7/Lower Caves | Discovered new exit (range 4) 3169 | -7/Lower Caves | Entered another Lower Caves area 3196 | -7/Lower Caves | Learned 4 Factory zone layouts 3293 | -7/Lower Caves | Spotted B-75 Beast 3330 | -7/Lower Caves | Discovered new exit (range 16) 3336 | -7/Lower Caves | Entered Data Miner 3336 | -7/Data Miner | Discovered new exit (range 6) 3343 | -7/Data Miner | Met Data Miner 3355 | -7/Data Miner | Received God Mode back door access code from Data Miner 3363 | -7/Data Miner | Entered Proximity Caves 3419 | -6/Proximity Caves | Learned 8 Factory zone layouts 3437 | -6/Proximity Caves | Snuck into a huge 0b10 base via the rear entrance 3440 | -6/Proximity Caves | Escorted by Enhanced Grunt 3451 | -6/Proximity Caves | Discovered new exit (range 5) 3452 | -6/Proximity Caves | Entered Factory 3452 | -6/Factory | Evolved 2 slots: Utility x2 3453 | -6/Factory | Identified exit to Factory 3453 | -6/Factory | Identified exit to Lower Caves 3453 | -6/Factory | Identified exit to Extension 3454 | -6/Factory | Loaded intel: 247 non-interactive machine locations 3591 | -6/Factory | Fabricated Lgt. Particle Reactor (x2) 3598 | -6/Factory | Repaired Cld. VTOL Module? 3653 | -6/Factory | Local fabrication network quarantined 3734 | -6/Factory | Repaired Cld. VTOL Module 3735 | -6/Factory | Hacking Suite fried by hacking feedback 3758 | -6/Factory | Repaired Cld. VTOL Module 3771 | -6/Factory | Found Prototype Processor 3771 | -6/Factory | Identified Exp. Signal Interpreter 3778 | -6/Factory | Found Exp. Signal Interpreter 3902 | -6/Factory | Discovered exit to Extension (range 6) 3903 | -6/Factory | Entered Extension 3919 | -6/Extension | Rescued a captive Derelict 3919 | -6/Extension | Rescued a captive Derelict 3982 | -6/Extension | Spotted B-75 Beast 4087 | -6/Extension | Disrupted transfer network 4140 | -6/Extension | Rescued a captive Derelict 4145 | -6/Extension | Rescued a captive Derelict 4170 | -6/Extension | Rescued a captive Derelict 4171 | -6/Extension | Rescued a captive Derelict 4226 | -6/Extension | Self-destructed Last Messages --------------- 04185_ Y-54 Guardian springs to life. 04207_ Y-54 Guardian suffers critical hit. 04209_ HV Slug penetrates Y-54 Guardian. 04211_ Y-54 Guardian suffers critical hit. 04212_ Y-54 Guardian destroyed. 04216_ HV Slug penetrates Y-54 Guardian. 04216_ Y-54 Guardian suffers critical hit. 04217_ HV Slug penetrates Y-54 Guardian. 04217_ R2-KZE(h) destroyed. 04219_ Y-54 Guardian suffers critical hit. 04219_ Y-54 Guardian destroyed. 04219_ 42-T3U(g) destroyed. 04221_ HV Slug penetrates Wall. 04222_ R-10 Processor collects Beamcaster. 04223_ HV Slug penetrates S-27 Virus. 04223_ S-27 Virus knocked back. 04224_ Greatsword destroyed. 04225_ HV Slug penetrates S-27 Virus. 04225_ S-27 Virus suffers critical hit. 04225_ S-27 Virus destroyed. Map ----- +----------------------------------------------------+ | | | | | | | | | | | | | | | | | | | | | | | | | | | | | | | ??????#??????#?#?????????????????????????????????? | | ??????????????#?#?????#??????????#?#?????????????? | | ????????????????########?????????????????????????? | | ?????###??????#??# #?????????????????????????? | | ???### ########### T #??????######????????#????? | | ???# !%= "" #?#?#???#####?#???????????? | | ???# *####### ### #???????## #?????????????? | | ???###T#?????# #?# ] #???????###"#????????#????? | | ?#???###?????# #?#######??#????## T??#??????????? | | ???#???#?????# ##############=####+##????????????? | | ############## R@%=%Y[ ;####?????????? | | hl sh==%[ ;#????????? | | ############################## ##??????? ? | | ????? #??????########???#?# #### #???#?????? | | ????? ######## = ####### #??# #?????????? | | ??? + [ / #??# #?????????? | | ###?? ######## / ########## #??# #?????????? | | ????? #??????# = #????????# #?## #?????????? | | ????######??????# #????#???# #??# ##????????? | | ?????????????#??# #??#?????# #??# #?????????? | | ????????????#???########????????# #??# #?????????? | | ?????????????????##???#?????????# #??# #?????????? | | ?#??????????????????????????????#+#?## #?????????? | | ???#?#???????????????????????????????# #?????????? | | ?????????????#?#?????#???????????????# #?????????? | | ????????????????????????#??????? ????? ??????????? | | ?????????????????????????????????????# ??????????? | | ??????????????????????#??????????????? ??????????? | | ?????????????????????????????????????? ??????????? | | ??#???????????????#??????????????????? ??????????? | | ??????#?????#???????????????#????????? ??????????? | | ?#???????????????????#???????????????? ????#?????? | | ?????#####??????????????#????????????? ??????????? | | ?????#!!!######??????????????????????? ??????????? | | ?#???# ? #??????????????????????? ??????????? | +----------------------------------------------------+ Best States ------------- Heat Dissipation 37 Energy Generation 23 Energy Capacity 300 Matter Stores 300 Matter Capacity 300 Sight Range 22 Terrain Scan Range 20 Terrain Scan Density 10 Additional Mass Support 15 Core Shielding 20 Evasion (%) 63 Targeting Accuracy 5 Target Analysis 5 Offensive Hacking 50 Item Schematics ----------------- Enh. Optical Array | -7/Factory | Scanalyzed Adv. Terrain Scanner | -7/Factory | Scanalyzed Combat Drone Bay | -7/Data Miner | Free Lgt. Regenerative Plating | -7/Data Miner | Free Cmb. Gravmag System | -7/Data Miner | Free Exp. Cesium-ion Thruster | -7/Data Miner | Free Exp. Sensor Array | -7/Data Miner | Free Exp. Terrain Scanner | -7/Data Miner | Free Tactical Coordination Suite | -7/Data Miner | Free Exp. ECM Suite | -7/Data Miner | Free Plasma Sword | -7/Data Miner | Free Mni. Smartbomb Launcher | -7/Data Miner | Free Robot Schematics ------------------ L-31 Rogue | -7/Factory | Hacked S-27 Virus | -7/Data Miner | Free G-50 Soldier | -7/Data Miner | Free L-41 Fighter | -7/Data Miner | Free X-72 Disruptor | -7/Data Miner | Free H-66 Slayer | -7/Data Miner | Free I-36 Angel | -7/Data Miner | Free I-47 Archangel | -7/Data Miner | Free Fabricated ------------ Enh. Optical Array | x1 | -7/Factory Disruptor Cannon | x1 | -7/Factory | Preloaded L-31 Rogue | x3 | -7/Factory Lgt. Particle Reactor | x2 | -6/Factory | Preloaded Alien Tech Used ----------------- None Achievements -------------- None Challenges ------------ None Game ------ Seed ArchitectDisruptionShredder Manual? 0 Play Time 01:18:29 Cumulative 134.2 hours Start 2021.05.13 @ 09:20:04 End 2021.05.13 @ 12:16:14 Sessions 5 Manual Loads 0 Difficulty Rogue Special Mode None Game No. 114 Rogue 114 Adventurer 0 Explorer 0 Win Type - Total 3 Types 3/0/0/0/0/0/0/0/0 Lore% 63 Gallery% 66 Achievement% 53 Wizard Run 0 Options --------- ASCII 1 Keyboard 1 Movement Arrows Keybinds 0 Fullscreen 2 Font 18/TerminusBold Map View 76x50 Tactical HUD 1 Map Filters NONE Filters NONE Steam 1 RUN: 1a79e140-fdb2-4ccc-ad39-455d6e621fce